bitfinex/quotes_SOLUSD_20240714
["timestamp","ask_amount","ask_price","bid_price","bid_amount"]
[1720945838251,6.2682,145.88,145.79,20.64]
[1720945838446,0.2,145.89,145.81,20.64]
[1720945838932,0.2,145.89,145.82,65.64]
[1720945839846,6.2682,145.88,145.79,6.9273486]
[1720945840046,1.71431946,145.87,145.76,22.5534]
[1720945840228,6.4875,145.86,145.77,20.0]
[1720945840429,1.71434417,145.85,145.77,20.0]
[1720945840740,1.71434417,145.85,145.76,16.2001]
[1720945840931,21.71434417,145.85,145.76,16.2001]
[1720945841136,6.2682,145.83,145.72,6.9273486]
[1720945841349,6.4875,145.81,145.72,6.9273486]
[1720945841522,1.71493427,145.8,145.71,16.2001]
[1720945841941,1.71494733,145.79,145.71,16.2001]
[1720945842139,1.71498386,145.8,145.71,16.2001]
[1720945842429,1.71498531,145.79,145.71,16.2001]
[1720945843433,1.71498531,145.79,145.68,13.2806486]
[1720945843631,1.71498531,145.79,145.68,6.9273486]
[1720945844031,1.71498531,145.79,145.69,20.64]
[1720945844441,1.71498531,145.79,145.7,20.0]
[1720945844838,1.71498531,145.79,145.71,45.0]
[1720945846348,4.1002506,145.78,145.71,45.0]
[1720945846548,20.0,145.78,145.71,45.0]
[1720945846726,21.71515508,145.78,145.71,45.0]
[1720945846929,20.0,145.78,145.71,45.0]
[1720945847129,21.71509694,145.8,145.71,45.0]
[1720945847324,5.81528772,145.79,145.71,45.0]
[1720945847538,24.10014492,145.78,145.71,45.0]
[1720945847735,1.7151428,145.79,145.71,45.0]
[1720945847956,4.10028712,145.78,145.71,45.0]
[1720945848255,20.0,145.78,145.71,45.0]
[1720945848756,1.7151428,145.79,145.71,45.0]
[1720945848929,5.81537975,145.78,145.71,45.0]
[1720945849131,1.71509903,145.78,145.71,45.0]
[1720945849328,1.71509883,145.79,145.71,45.0]
[1720945849538,4.10028712,145.78,145.71,45.0]
[1720945849757,20.0,145.78,145.71,45.0]
[1720945849929,1.71509892,145.77,145.68,6.9273486]
[1720945850263,4.10107992,145.76,145.67,15.876]
[1720945850441,20.0,145.76,145.68,20.0]
[1720945850642,20.0,145.76,145.67,15.876]
[1720945851436,12.29075957,145.75,145.67,15.876]
[1720945851769,8.18926168,145.75,145.65,20.64]
[1720945852064,8.18926168,145.75,145.66,40.64]
[1720945853162,6.4738,145.75,145.67,45.0]
[1720945853374,8.18917879,145.75,145.68,20.0]
[1720945853666,6.4738,145.75,145.69,45.0]
[1720945853872,8.18919427,145.75,145.69,45.0]
[1720945854871,8.18919427,145.75,145.68,20.0]
[1720945855069,8.18919427,145.75,145.65,20.0]
[1720945856048,8.18919427,145.75,145.66,45.0]
[1720945856365,8.18919427,145.75,145.67,20.0]
[1720945856582,8.18919427,145.75,145.68,45.0]
[1720945857077,8.18919427,145.75,145.69,20.0]
[1720945857280,8.18919427,145.75,145.7,45.0]
[1720945857480,6.4738,145.75,145.7,45.0]
[1720945858480,8.18920929,145.75,145.7,45.0]
[1720945858680,6.4738,145.75,145.7,45.0]
[1720945859383,8.18919035,145.75,145.7,45.0]
[1720945860678,6.4738,145.75,145.7,45.0]
[1720945861181,8.18922418,145.75,145.7,45.0]
[1720945862965,6.4738,145.75,145.7,45.0]
[1720945863172,8.18918912,145.75,145.7,45.0]
[1720945863365,8.18918912,145.75,145.64,22.91781208]
[1720945863567,20.0,145.74,145.64,15.876]
[1720945863800,1.71583772,145.73,145.64,15.876]
[1720945864376,1.71583772,145.73,145.63,27.5673486]
[1720945864377,6.2682,145.72,145.61,20.64]
[1720945864579,21.71588725,145.71,145.61,20.64]
[1720945865090,20.0,145.71,145.61,20.64]
[1720945865590,20.0,145.71,145.62,40.64]
[1720945865799,20.0,145.71,145.62,20.0]
[1720945866092,1.71588769,145.7,145.63,45.0]
[1720945866294,1.71588769,145.7,145.62,45.0]
[1720945866666,1.71588769,145.7,145.61,27.68181208]
[1720945867290,20.0,145.71,145.62,20.0]
[1720945867491,20.0,145.71,145.62,40.64]
[1720945867996,20.0,145.71,145.63,45.0]
[1720945868159,6.2682,145.72,145.63,65.64]
[1720945868470,6.2682,145.72,145.64,20.0]
[1720945868670,6.2682,145.72,145.65,45.0]
[1720945868984,1.71577756,145.71,145.65,45.0]
[1720945869496,1.71577756,145.71,145.64,45.0]
[1720945870088,1.71577756,145.71,145.63,7.04181208]
[1720945870262,21.71577756,145.71,145.63,7.04181208]
[1720945872301,21.71577756,145.71,145.64,45.0]
[1720945872608,20.0,145.71,145.64,45.0]
[1720945872782,6.2682,145.72,145.64,45.0]
[1720945874085,20.0,145.71,145.64,45.0]
[1720945874611,6.2682,145.72,145.64,45.0]
[1720945876005,21.71579207,145.71,145.64,45.0]
[1720945877685,6.0926,145.7,145.61,20.64]
[1720945877880,21.71616597,145.69,145.61,20.64]
[1720945878114,20.0,145.69,145.61,20.64]
[1720945879196,20.0,145.69,145.63,20.64]
[1720945879393,20.0,145.69,145.64,45.0]
[1720945883113,6.2682,145.72,145.64,65.64]
[1720945883292,7.98404709,145.72,145.64,65.64]
[1720945884417,20.0,145.71,145.64,65.64]
[1720945887222,20.0,145.72,145.64,65.64]
[1720945888929,21.71578829,145.72,145.64,65.64]
[1720945890341,21.71578829,145.72,145.64,45.0]
[1720945891413,21.71578829,145.72,145.64,65.66]
[1720945893323,20.0,145.72,145.64,65.66]
[1720945893623,21.71578446,145.72,145.65,16.1853]
[1720945893834,21.71578446,145.72,145.66,45.0]
[1720945894208,20.0,145.72,145.66,45.0]
[1720945894854,21.71578394,145.72,145.66,45.0]
[1720945896217,6.0827,145.79,145.66,65.66]
[1720945896418,1.71539553,145.78,145.67,40.66]
[1720945896735,1.71539553,145.78,145.68,45.0]
[1720945898034,21.71539553,145.78,145.68,45.0]
[1720945898640,21.71539553,145.78,145.68,65.66]
[1720945899143,21.71539553,145.78,145.68,45.0]
[1720945902126,21.71539553,145.78,145.68,65.66]
[1720945905126,6.0827,145.79,145.7,37.0603]
[1720945905343,1.71509817,145.78,145.71,45.0]
[1720945905529,1.71509817,145.78,145.71,65.66]
[1720945906738,21.71509817,145.78,145.71,65.66]
[1720945907545,21.71509817,145.78,145.71,45.0]
[1720945910361,21.71509817,145.78,145.66,16.4003]
[1720945910826,21.71509817,145.78,145.67,20.66]
[1720945912155,21.71509817,145.78,145.68,45.0]
[1720945912961,21.71509817,145.78,145.67,45.0]
[1720945915356,6.2682,145.77,145.67,45.0]
[1720945915539,21.71584997,145.76,145.67,45.0]
[1720945916340,6.2233,145.75,145.67,45.0]
[1720945916646,21.71601719,145.74,145.67,45.0]
[1720945916846,1.71592136,145.73,145.67,45.0]
[1720945917864,1.71585927,145.73,145.67,45.0]
[1720945923640,4.10217705,145.72,145.67,45.0]
[1720945923951,1.71585927,145.73,145.67,45.0]
[1720945924149,4.10214373,145.72,145.67,45.0]
[1720945924471,1.71585927,145.73,145.67,45.0]
[1720945924649,4.10199723,145.72,145.67,45.0]
[1720945924965,1.71585927,145.73,145.67,45.0]
[1720945925155,4.1019965,145.72,145.67,45.0]
[1720945925455,1.71585927,145.73,145.67,45.0]
[1720945925662,4.1019965,145.72,145.67,45.0]
[1720945925862,1.71585927,145.73,145.67,45.0]
[1720945926033,4.10213805,145.72,145.67,45.0]
[1720945926233,1.71585927,145.73,145.67,45.0]
[1720945926435,4.10213805,145.72,145.67,45.0]
[1720945926635,1.71585927,145.73,145.67,45.0]
[1720945926857,4.10227815,145.72,145.66,45.0]
[1720945927048,20.0,145.74,145.64,13.96916068]
[1720945927049,5.81820214,145.71,145.64,13.96916068]
[1720945927247,1.71607113,145.7,145.64,6.9273486]
[1720945927450,1.71604824,145.73,145.64,6.9273486]
[1720945927662,4.10241068,145.72,145.64,6.9273486]
[1720945927878,5.81847424,145.71,145.64,6.9273486]
[1720945928068,4.10241068,145.7,145.64,6.9273486]
[1720945928439,5.81836901,145.7,145.64,6.9273486]
[1720945928642,1.71605362,145.73,145.65,45.0]
[1720945929039,4.10269752,145.72,145.65,45.0]
[1720945929251,5.81864858,145.71,145.65,45.0]
[1720945929456,4.10269752,145.7,145.65,65.66]
[1720945929639,24.10269752,145.72,145.65,65.66]
[1720945929841,4.10269752,145.71,145.65,65.66]
[1720945930040,24.10269752,145.72,145.65,65.66]
[1720945930245,4.10269752,145.7,145.65,65.66]
[1720945930453,4.10269752,145.69,145.65,65.66]
[1720945930752,1.71589003,145.71,145.65,65.66]
[1720945930954,4.10298069,145.7,145.65,65.66]
[1720945931270,4.10298069,145.69,145.65,65.66]
[1720945931468,4.10298069,145.7,145.65,65.66]
[1720945931642,24.10298142,145.72,145.65,65.66]
[1720945931943,5.81881778,145.71,145.65,65.66]
[1720945932264,4.10287431,145.7,145.65,65.66]
[1720945932868,20.0,145.72,145.65,65.66]
[1720945933068,5.81860282,145.71,145.65,65.66]
[1720945933247,4.10266303,145.7,145.65,65.66]
[1720945933743,4.10266303,145.72,145.65,65.66]
[1720945933941,4.10234277,145.71,145.65,65.66]
[1720945934170,20.0,145.71,145.65,65.66]
[1720945934338,4.10246731,145.7,145.65,65.66]
[1720945934542,20.0,145.71,145.65,65.66]
[1720945934759,21.71586106,145.74,145.65,65.66]
[1720945935044,5.81816255,145.73,145.65,65.66]
[1720945935253,24.10246512,145.72,145.65,65.66]
[1720945935460,4.10246512,145.71,145.65,65.66]
[1720945935663,1.7157077,145.73,145.65,65.66]
[1720945935870,4.10246585,145.72,145.69,11.11]
[1720945936171,1.71544449,145.76,145.7,45.0]
[1720945936373,11.11,145.74,145.7,45.0]
[1720945936557,4.10130366,145.73,145.7,45.0]
[1720945936751,11.11,145.74,145.7,45.0]
[1720945936970,4.10128776,145.73,145.7,45.0]
[1720945937269,11.11,145.74,145.7,45.0]
[1720945937446,11.11,145.73,145.7,45.0]
[1720945937647,1.71548016,145.76,145.7,45.0]
[1720945937943,11.11,145.74,145.7,45.0]
[1720945938465,4.10128789,145.73,145.7,45.0]
[1720945938642,1.71548016,145.76,145.7,65.66]
[1720945938844,1.71516562,145.83,145.72,27.0528]
[1720945939094,5.8152893,145.82,145.76,11.11]
[1720945939367,4.10062483,145.81,145.77,45.0]
[1720945939594,4.10062483,145.8,145.77,45.0]
[1720945939748,1.71471311,145.84,145.78,11.11]
[1720945939944,15.20835448,145.83,145.79,56.11]
[1720945940264,4.09835448,145.82,145.8,45.0]
[1720945940569,298.84,145.88,145.8,45.0]
[1720945940570,1.71435772,145.87,145.8,45.0]
[1720945940749,4.09762096,145.86,145.8,45.0]
[1720945940948,5.81202987,145.85,145.8,45.0]
[1720945941162,4.09762096,145.84,145.8,45.0]
[1720945941364,1.71440891,145.85,145.8,45.0]
[1720945941678,4.09754893,145.84,145.8,45.0]
[1720945941852,1.71449492,145.83,145.8,45.0]
[1720945942168,1.71456042,145.86,145.8,45.0]
[1720945942478,5.81215758,145.85,145.8,45.0]
[1720945942656,20.0,145.84,145.77,36.4903]
[1720945942863,1.71445354,145.83,145.78,45.0]
[1720945943176,1.71452336,145.85,145.78,45.0]
[1720945943347,4.09787834,145.84,145.78,45.0]
[1720945943675,20.0,145.84,145.78,65.66]
[1720945944173,1.714509,145.85,145.78,65.66]
[1720945944351,1.714509,145.85,145.78,45.0]
[1720945953579,1.7145069,145.86,145.78,65.66]
[1720945953767,1.71434823,145.85,145.78,65.66]
[1720945953968,1.71434823,145.85,145.78,45.0]
[1720945954882,1.71449524,145.86,145.78,45.0]
[1720945955081,1.71444502,145.85,145.78,45.0]
[1720945955466,1.71444502,145.85,145.78,65.66]
[1720945955782,1.71444502,145.85,145.78,45.0]
[1720945956168,1.71445012,145.86,145.78,45.0]
[1720945956466,1.71446792,145.85,145.78,45.0]
[1720945959883,23.89446792,145.85,145.77,15.8303]
[1720945960061,20.0,145.84,145.77,15.8303]
[1720945960257,1.71482659,145.83,145.77,15.8303]
[1720945960574,1.71482659,145.82,145.77,15.8303]
[1720945960780,11.1,145.78,145.77,15.8303]
[1720945961162,11.1,145.79,145.77,15.8303]
[1720945961387,1.71486274,145.86,145.77,15.8303]
[1720945961588,11.1,145.79,145.77,15.8303]
[1720945962668,11.1,145.8,145.77,15.8303]
[1720945962990,11.1,145.8,145.78,45.0]
[1720945964061,11.1,145.81,145.78,45.0]
[1720945964360,11.1,145.79,145.78,45.0]
[1720945964570,11.1,145.79,145.77,15.8303]
[1720945965999,1.71471911,145.85,145.77,15.8303]
[1720945966000,11.1,145.78,145.77,15.8303]
[1720945966169,11.1,145.79,145.77,60.8303]
[1720945967693,1.71492429,145.85,145.77,60.8303]
[1720945967906,11.1,145.8,145.78,45.0]
[1720945969401,11.1,145.8,145.77,15.8303]
[1720945970098,1.71470906,145.87,145.77,15.8303]
[1720945970392,11.1,145.8,145.78,45.0]
[1720945973206,1.71467278,145.87,145.78,45.0]
[1720945973380,11.1,145.83,145.78,56.1]
[1720945973699,32.81437407,145.82,145.78,45.0]
[1720945973999,11.1,145.81,145.78,45.0]
[1720945974806,20.0,145.82,145.78,45.0]
[1720945975010,11.1,145.81,145.78,45.0]
[1720945976410,21.71460111,145.87,145.78,45.0]
[1720945976712,11.1,145.81,145.78,45.0]
[1720945978810,11.1,145.8,145.78,45.0]
[1720945981220,11.1,145.81,145.78,45.0]
[1720945981399,11.1,145.81,145.77,15.8303]
[1720945981718,11.1,145.8,145.77,15.8303]
[1720945984113,11.1,145.8,145.78,45.0]
[1720945984504,4.09901804,145.79,145.78,45.0]
[1720945984905,4.09901877,145.79,145.78,45.0]
[1720945985892,11.1,145.81,145.78,45.0]
[1720945986100,1.71451099,145.84,145.78,45.0]
[1720945986300,11.1,145.82,145.78,45.0]
[1720945986590,24.09831218,145.81,145.78,45.0]
[1720945986794,20.0,145.81,145.78,45.0]
[1720945986998,20.0,145.81,145.78,56.1]
[1720945987311,11.1,145.82,145.78,45.0]
[1720945987611,24.09831124,145.81,145.78,45.0]
[1720945987816,20.0,145.81,145.78,45.0]
[1720945988912,11.1,145.82,145.78,45.0]
[1720945989119,4.09812318,145.81,145.78,45.0]
[1720945989415,1.71449696,145.87,145.79,11.1]
[1720945989718,11.1,145.83,145.8,45.0]
[1720945989922,4.09764846,145.82,145.8,45.0]
[1720945990097,11.1,145.83,145.8,45.0]
[1720945990418,4.09783942,145.82,145.79,45.0]
[1720945990604,11.1,145.83,145.79,45.0]
[1720945990803,4.09788546,145.82,145.79,45.0]
[1720945991016,11.1,145.83,145.79,45.0]
[1720945991318,4.09788546,145.82,145.79,45.0]
[1720945991498,15.19788546,145.82,145.79,45.0]
[1720945991818,15.19788642,145.81,145.79,45.0]
[1720945992017,1.71432449,145.87,145.78,45.0]
[1720945992018,11.1,145.8,145.78,45.0]
[1720945993121,1.71432449,145.87,145.78,45.0]
[1720945993327,11.1,145.8,145.78,45.0]
[1720945996426,11.1,145.81,145.78,45.0]
[1720945997906,11.1,145.79,145.77,15.8303]
[1720945998114,11.1,145.78,145.77,15.8303]
[1720945998309,11.1,145.79,145.77,15.8303]
[1720945999511,11.1,145.8,145.77,15.8303]
[1720946000112,11.1,145.8,145.78,45.0]
[1720946000324,11.1,145.81,145.78,45.0]
[1720946000524,4.09849742,145.8,145.78,45.0]
[1720946000723,11.1,145.81,145.78,45.0]
[1720946000921,4.09844815,145.8,145.78,45.0]
[1720946001113,11.1,145.79,145.77,15.8303]
[1720946001320,6.2682,145.85,145.77,15.8303]
[1720946001321,11.1,145.78,145.77,15.8303]
[1720946001603,15.19910254,145.78,145.77,15.8303]
[1720946002003,15.19910254,145.78,145.73,16.0117]
[1720946002220,4.09971228,145.77,145.73,16.0117]
[1720946002420,11.1,145.76,145.73,16.0117]
[1720946003633,11.1,145.76,145.74,45.0]
[1720946004143,1.71508404,145.8,145.73,16.0117]
[1720946004446,11.1,145.74,145.73,16.0117]
[1720946004607,15.20059271,145.74,145.73,16.0117]
[1720946004809,11.1,145.74,145.73,16.0117]
[1720946005014,15.20097675,145.74,145.73,16.0117]
[1720946005523,15.20097675,145.74,145.73,61.0117]
[1720946006420,11.1,145.74,145.73,61.0117]
[1720946007129,11.1,145.75,145.73,61.0117]
[1720946007836,11.1,145.75,145.73,16.0117]
[1720946008206,1.71533066,145.79,145.73,16.0117]
[1720946008407,11.1,145.75,145.73,16.0117]
[1720946009920,11.1,145.74,145.73,16.0117]
[1720946010243,11.1,145.74,145.69,16.5956]
[1720946010417,11.1,145.73,145.7,45.0]
[1720946010933,1.71536658,145.79,145.7,45.0]
[1720946011120,11.1,145.73,145.7,45.0]
[1720946011325,11.1,145.74,145.7,45.0]
[1720946011732,1.71548455,145.77,145.71,11.1]
[1720946011933,4.1008699,145.76,145.72,45.0]
[1720946012135,1.71527447,145.79,145.74,16.5956]
[1720946012315,1.71527447,145.79,145.75,45.0]
[1720946012316,4.10006014,145.78,145.75,45.0]
[1720946012639,11.1,145.78,145.75,45.0]
[1720946014043,11.1,145.77,145.75,45.0]
[1720946016035,1.71498762,145.8,145.75,45.0]
[1720946016225,4.099717,145.79,145.75,56.1]
[1720946016539,1.71480779,145.82,145.75,76.76]
[1720946016737,11.1,145.8,145.75,76.76]
[1720946017745,11.1,145.8,145.76,11.1]
[1720946018049,11.1,145.81,145.77,45.0]
[1720946018225,20.0,145.8,145.77,45.0]
[1720946018815,1.71465098,145.85,145.77,45.0]
[1720946019020,11.1,145.82,145.77,45.0]
[1720946019218,35.19901322,145.81,145.77,56.1]
[1720946019439,11.1,145.81,145.77,56.1]
[1720946020213,11.1,145.8,145.77,45.0]
[1720946020616,11.1,145.8,145.76,45.0]
[1720946020835,11.1,145.79,145.76,45.0]
[1720946021538,11.1,145.79,145.75,45.0]
[1720946021715,11.1,145.78,145.75,45.0]
[1720946021923,11.1,145.81,145.74,22.8605]
[1720946021924,11.1,145.77,145.74,16.5956]
[1720946023346,11.1,145.76,145.74,16.5956]
[1720946023530,11.1,145.75,145.74,16.5956]
[1720946024037,11.1,145.76,145.74,16.5956]
[1720946024854,11.1,145.76,145.71,26.3725]
[1720946025032,11.1,145.75,145.72,45.0]
[1720946025344,1.71524964,145.79,145.72,45.0]
[1720946025345,11.1,145.76,145.72,45.0]
[1720946025550,11.1,145.75,145.72,45.0]
[1720946025924,11.1,145.76,145.72,45.0]
[1720946026443,11.1,145.75,145.72,45.0]
[1720946026755,31.1,145.75,145.72,45.0]
[1720946027932,31.1,145.75,145.71,15.2725]
[1720946028628,20.0,145.75,145.71,15.2725]
[1720946028845,11.1,145.75,145.72,45.0]
[1720946029035,11.1,145.74,145.69,19.7074211]
[1720946029249,11.1,145.74,145.7,45.0]
[1720946029549,1.71534892,145.79,145.71,11.1]
[1720946029844,11.1,145.76,145.72,45.0]
[1720946030149,11.1,145.74,145.7,11.1]
[1720946030559,11.1,145.74,145.71,45.0]
[1720946031234,11.1,145.74,145.7,56.1]
[1720946034357,11.1,145.74,145.7,45.0]
[1720946034550,11.1,145.74,145.7,11.1]
[1720946034750,11.1,145.74,145.71,45.0]
[1720946035645,11.1,145.74,145.7,45.0]
[1720946036755,12.81551477,145.74,145.7,45.0]
[1720946037065,11.1,145.73,145.69,56.1]
[1720946037369,12.81551477,145.74,145.69,56.1]
[1720946037865,11.1,145.73,145.69,45.0]
[1720946039762,11.1,145.72,145.68,23.49811358]
[1720946040066,11.1,145.71,145.68,15.2725]
[1720946040260,11.1,145.72,145.68,15.2725]
[1720946042856,11.1,145.74,145.69,56.1]
[1720946043055,20.0,145.73,145.69,56.1]
[1720946043456,11.1,145.74,145.69,56.1]
[1720946043671,20.0,145.73,145.69,56.1]
[1720946043854,11.1,145.74,145.69,56.1]
[1720946044169,20.0,145.73,145.69,56.1]
[1720946044365,31.1,145.73,145.69,56.1]
[1720946044956,31.1,145.73,145.69,45.0]
[1720946045476,1.71549579,145.76,145.7,11.1]
[1720946045771,11.1,145.74,145.71,45.0]
[1720946048574,11.1,145.74,145.7,45.0]
[1720946049489,11.1,145.73,145.7,45.0]
[1720946051385,11.1,145.74,145.7,45.0]
[1720946051770,1.71549579,145.76,145.7,45.0]
[1720946052097,11.1,145.73,145.7,45.0]
[1720946052462,11.1,145.73,145.69,45.0]
[1720946052901,11.1,145.72,145.69,45.0]
[1720946053869,21.71549579,145.76,145.69,45.0]
[1720946054073,11.1,145.73,145.69,45.0]
[1720946054965,11.1,145.72,145.69,45.0]
[1720946056176,1.71565901,145.75,145.69,45.0]
[1720946056371,11.1,145.72,145.69,45.0]
[1720946058697,11.1,145.72,145.68,15.2725]
[1720946058906,11.1,145.71,145.68,15.2725]
[1720946060297,1.71565417,145.75,145.68,15.2725]
[1720946060600,11.1,145.71,145.68,15.2725]
[1720946061192,11.1,145.7,145.68,15.2725]
[1720946061691,11.1,145.71,145.68,15.2725]
[1720946062086,11.1,145.7,145.68,15.2725]
[1720946062883,11.1,145.71,145.68,15.2725]
[1720946063908,11.1,145.7,145.68,15.2725]
[1720946064108,11.1,145.69,145.68,15.2725]
[1720946064601,11.1,145.7,145.68,15.2725]
[1720946065697,11.1,145.72,145.68,15.2725]
[1720946065907,20.0,145.71,145.68,15.2725]
[1720946066395,20.0,145.71,145.69,45.0]
[1720946066602,11.1,145.72,145.69,45.0]
[1720946066784,20.0,145.71,145.68,15.2725]
[1720946066979,11.1,145.72,145.68,15.2725]
[1720946067187,24.1025546,145.71,145.68,15.2725]
[1720946067375,20.0,145.71,145.68,15.2725]
[1720946068884,32.81575478,145.71,145.68,15.2725]
[1720946069091,4.10287682,145.7,145.68,15.2725]
[1720946069301,32.81575478,145.71,145.68,15.2725]
[1720946069485,4.10287755,145.7,145.68,15.2725]
[1720946069816,32.81575478,145.71,145.68,15.2725]
[1720946070119,4.10288323,145.7,145.68,15.2725]
[1720946070406,32.81575478,145.71,145.68,15.2725]
[1720946070613,4.10288323,145.7,145.68,15.2725]
[1720946070809,32.81575478,145.71,145.68,15.2725]
[1720946071008,15.20288323,145.7,145.64,44.76821358]
[1720946071181,12.81597612,145.7,145.65,56.1]
[1720946071508,11.1,145.7,145.65,56.1]
[1720946071712,31.1,145.71,145.66,11.1]
[1720946071890,4.10289117,145.7,145.66,11.1]
[1720946072090,20.0,145.71,145.66,11.1]
[1720946072308,4.10274875,145.7,145.66,11.1]
[1720946072516,20.0,145.72,145.66,11.1]
[1720946072813,5.81885966,145.71,145.66,11.1]
[1720946073016,4.10288476,145.7,145.66,11.1]
[1720946073199,1.7159749,145.71,145.66,11.1]
[1720946073397,4.10288403,145.7,145.65,45.0]
[1720946073595,11.1,145.68,145.65,45.0]
[1720946074626,1.71614577,145.72,145.64,15.8826]
[1720946074627,11.1,145.67,145.64,15.8826]
[1720946075597,20.0,145.73,145.6,15.8826]
[1720946075598,11.1,145.65,145.6,15.8826]
[1720946075797,11.1,145.65,145.6,26.9826]
[1720946077327,1.71653879,145.7,145.6,26.9826]
[1720946077528,11.1,145.65,145.61,11.1]
[1720946078012,1.7165349,145.68,145.62,56.1]
[1720946078227,11.1,145.66,145.6,15.8826]
[1720946078416,11.1,145.65,145.61,11.1]
[1720946078799,11.1,145.66,145.62,56.1]
[1720946079111,11.1,145.66,145.62,45.0]
[1720946079305,1.71647865,145.65,145.6,15.8826]
[1720946079518,11.1,145.64,145.6,26.9826]
[1720946081702,11.1,145.64,145.6,15.8826]
[1720946084041,11.1,145.64,145.6,26.9826]
[1720946084329,11.1,145.64,145.6,15.8826]
[1720946085323,1.71665816,145.69,145.6,15.8826]
[1720946085324,11.1,145.63,145.6,15.8826]
[1720946085921,11.1,145.64,145.6,26.9826]
[1720946086227,11.1,145.64,145.6,15.8826]
[1720946086521,1.71670855,145.66,145.6,15.8826]
[1720946086718,11.1,145.63,145.6,15.8826]
[1720946087106,11.1,145.64,145.6,15.8826]
[1720946087625,11.1,145.65,145.6,26.9826]
[1720946088321,1.7167037,145.69,145.6,26.9826]
[1720946088514,1.7167037,145.69,145.62,11.1]
[1720946088725,1.7167037,145.69,145.63,11.1]
[1720946088916,11.1,145.68,145.64,45.0]
[1720946089234,20.0,145.67,145.64,11.1]
[1720946089431,20.0,145.67,145.63,11.1]
[1720946089627,20.0,145.67,145.64,45.0]
[1720946090314,11.1,145.69,145.65,11.1]
[1720946090520,1.71624488,145.73,145.66,61.6588]
[1720946090835,11.1,145.7,145.66,61.6588]
[1720946091208,11.1,145.69,145.66,16.6588]
[1720946091648,20.0,145.68,145.66,16.6588]
[1720946092109,31.1,145.68,145.66,16.6588]
[1720946092736,20.0,145.68,145.63,16.6588]
[1720946092937,11.1,145.67,145.64,45.0]
[1720946095738,11.1,145.67,145.63,16.6588]
[1720946096445,11.1,145.66,145.63,16.6588]
[1720946097309,11.1,145.65,145.63,16.6588]
[1720946097506,21.71615456,145.73,145.59,16.6588]
[1720946097507,11.1,145.64,145.59,16.6588]
[1720946097728,11.1,145.64,145.59,27.7588]
[1720946098007,11.1,145.64,145.6,11.1]
[1720946099332,11.1,145.64,145.59,27.7588]
[1720946099724,11.1,145.64,145.59,16.6588]
[1720946099926,11.1,145.64,145.59,27.7588]
[1720946100732,1.71669552,145.66,145.6,11.1]
[1720946101055,11.1,145.65,145.61,11.1]
[1720946101219,12.81657129,145.64,145.59,16.6588]
[1720946101536,1.71677435,145.66,145.59,27.7588]
[1720946101746,11.1,145.64,145.6,11.1]
[1720946102637,11.1,145.65,145.6,11.1]
[1720946102819,11.1,145.66,145.61,11.1]